[Event "Titled Tuesday Blitz June 28 Late 2022"]
[White "Kavinda, Akila"]
[Black "Barp, Alberto"]
[WhiteFideId "9901302"]
[BlackFideId "872555"]
[WhiteElo "2043"]
[BlackElo "2229"]
[Result "0-1"]
[Round "01"]
[TimeControl "180+1"]
[Date "2022.06.29"]
[WhiteClock "0:00:13"]
[BlackClock "0:01:31"]

1. Nf3 {[%clk 0:02:59]}  c5 {[%clk 0:02:56]} 2. g3 {[%clk 0:02:58]}  g6 {[%clk 0:02:56]} 3. d4 {[%clk 0:02:51]}  Bg7 {[%clk 0:02:54]} 4. Bg2 {[%clk 0:02:50]}  cxd4 {[%clk 0:02:53]} 5. Nxd4 {[%clk 0:02:50]}  Nc6 {[%clk 0:02:54]} 6. Nb3 {[%clk 0:02:49]}  Nf6 {[%clk 0:02:53]} 7. Nc3 {[%clk 0:02:48]}  O-O {[%clk 0:02:53]} 8. O-O {[%clk 0:02:47]}  d6 {[%clk 0:02:52]} 9. e4 {[%clk 0:02:47]}  Bg4 {[%clk 0:02:51]} 10. f3 {[%clk 0:02:47]}  Be6 {[%clk 0:02:51]} 11. Nd5 {[%clk 0:02:40]}  Bxd5 {[%clk 0:02:47]} 12. exd5 {[%clk 0:02:40]}  Ne5 {[%clk 0:02:44]} 13. a4 {[%clk 0:02:27]}  Rc8 {[%clk 0:02:41]} 14. c3 {[%clk 0:02:25]}  Nc4 {[%clk 0:02:38]} 15. a5 {[%clk 0:02:22]}  a6 {[%clk 0:02:37]} 16. Re1 {[%clk 0:02:15]}  Qd7 {[%clk 0:02:33]} 17. Bf1 {[%clk 0:01:53]}  Rfe8 {[%clk 0:02:28]} 18. Nd2 {[%clk 0:01:14]}  Nxd2 {[%clk 0:02:16]} 19. Qxd2 {[%clk 0:01:14]}  Qf5 {[%clk 0:02:16]} 20. f4 {[%clk 0:01:00]}  Qxd5 {[%clk 0:01:53]} 21. Bg2 {[%clk 0:00:31]}  Qxd2 {[%clk 0:01:52]} 22. Bxd2 {[%clk 0:00:30]}  d5 {[%clk 0:01:51]} 23. Ra4 {[%clk 0:00:26]}  e6 {[%clk 0:01:46]} 24. Rb4 {[%clk 0:00:25]}  Re7 {[%clk 0:01:46]} 25. Be3 {[%clk 0:00:19]}  Bf8 {[%clk 0:01:40]} 26. Bd4 {[%clk 0:00:18]}  Ne8 {[%clk 0:01:39]} 27. Rb6 {[%clk 0:00:17]}  Rd7 {[%clk 0:01:37]} 28. g4 {[%clk 0:00:16]}  Nd6 {[%clk 0:01:36]} 29. f5 {[%clk 0:00:12]}  gxf5 {[%clk 0:01:35]} 30. gxf5 {[%clk 0:00:13]}  Nxf5 {[%clk 0:01:35]} 31. Bf6 {[%clk 0:00:13]}  Bc5+ {[%clk 0:01:34]} 32. Kf1 {[%clk 0:00:12]}  Ne3+ {[%clk 0:01:31]} 33. Rxe3 {[%clk 0:00:13]}  Bxe3 {[%clk 0:01:32]} 34. Rb4 {[%clk 0:00:13]}  Rc4 {[%clk 0:01:31]} 35. Rb3 {[%clk 0:00:13]}  Rf4+ {[%clk 0:01:31]} 0-1


[Site "https://www.chess.com"]

[Event "Titled Tuesday Blitz June 28 Late 2022"]
[White "Kuzmin, Roman"]
[Black "Maksimovic, Bojan"]
[WhiteFideId "44134932"]
[BlackFideId "14408120"]
[WhiteElo "2421"]
[BlackElo "2771"]
[Result "0-1"]
[Round "01"]
[TimeControl "180+1"]
[Date "2022.06.29"]
[WhiteClock "0:00:06"]
[BlackClock "0:00:08"]

1. e4 {[%clk 0:03:00]}  c5 {[%clk 0:02:52]} 2. Nf3 {[%clk 0:03:01]}  Nc6 {[%clk 0:02:49]} 3. d4 {[%clk 0:03:01]}  cxd4 {[%clk 0:02:49]} 4. Nxd4 {[%clk 0:03:02]}  Nf6 {[%clk 0:02:50]} 5. Nc3 {[%clk 0:03:01]}  e5 {[%clk 0:02:51]} 6. Ndb5 {[%clk 0:03:00]}  h6 {[%clk 0:02:51]} 7. Nd5 {[%clk 0:02:50]}  Nxd5 {[%clk 0:02:49]} 8. exd5 {[%clk 0:02:51]}  a6 {[%clk 0:02:50]} 9. Nc3 {[%clk 0:02:16]}  Nd4 {[%clk 0:02:50]} 10. Be3 {[%clk 0:02:13]}  Bc5 {[%clk 0:02:50]} 11. Ne4 {[%clk 0:02:12]}  d6 {[%clk 0:02:51]} 12. Nxc5 {[%clk 0:02:03]}  dxc5 {[%clk 0:02:51]} 13. c3 {[%clk 0:02:03]}  O-O {[%clk 0:02:51]} 14. cxd4 {[%clk 0:01:51]}  exd4 {[%clk 0:02:52]} 15. Bf4 {[%clk 0:01:52]}  Qxd5 {[%clk 0:02:51]} 16. Qf3 {[%clk 0:01:33]}  Re8+ {[%clk 0:02:46]} 17. Kd2 {[%clk 0:01:31]}  Qd8 {[%clk 0:02:31]} 18. Bc4 {[%clk 0:01:28]}  Qa5+ {[%clk 0:02:26]} 19. Kd1 {[%clk 0:01:14]}  Be6 {[%clk 0:02:01]} 20. Bd2 {[%clk 0:01:12]}  Qc7 {[%clk 0:01:28]} 21. Bxe6 {[%clk 0:01:12]}  Rxe6 {[%clk 0:01:28]} 22. Kc2 {[%clk 0:00:59]}  c4 {[%clk 0:01:26]} 23. Rae1 {[%clk 0:00:59]}  Rf6 {[%clk 0:01:24]} 24. Qg3 {[%clk 0:00:55]}  Qc6 {[%clk 0:01:21]} 25. Kb1 {[%clk 0:00:20]}  Rg6 {[%clk 0:01:12]} 26. Qf3 {[%clk 0:00:20]}  Rxg2 {[%clk 0:01:12]} 27. Qxc6 {[%clk 0:00:19]}  bxc6 {[%clk 0:01:13]} 28. Rhg1 {[%clk 0:00:20]}  Rxh2 {[%clk 0:00:52]} 29. Re4 {[%clk 0:00:16]}  c5 {[%clk 0:00:49]} 30. Bf4 {[%clk 0:00:13]}  Rh4 {[%clk 0:00:47]} 31. f3 {[%clk 0:00:11]}  f6 {[%clk 0:00:16]} 32. Bd6 {[%clk 0:00:05]}  Rxe4 {[%clk 0:00:16]} 33. fxe4 {[%clk 0:00:06]}  Rc8 {[%clk 0:00:11]} 34. Rf1 {[%clk 0:00:06]}  Kf7 {[%clk 0:00:11]} 35. Rf5 {[%clk 0:00:07]}  Rc6 {[%clk 0:00:05]} 36. Bb8 {[%clk 0:00:02]}  Ke6 {[%clk 0:00:05]} 37. Rd5 {[%clk 0:00:02]}  g6 {[%clk 0:00:04]} 38. Ba7 {[%clk 0:00:03]}  f5 {[%clk 0:00:04]} 39. Rxc5 {[%clk 0:00:03]}  Rxc5 {[%clk 0:00:04]} 40. Bxc5 {[%clk 0:00:04]}  f4 {[%clk 0:00:03]} 41. Bxd4 {[%clk 0:00:04]}  g5 {[%clk 0:00:04]} 42. Kc2 {[%clk 0:00:04]}  g4 {[%clk 0:00:04]} 43. Kd2 {[%clk 0:00:05]}  h5 {[%clk 0:00:05]} 44. Ke2 {[%clk 0:00:05]}  h4 {[%clk 0:00:05]} 45. Kf2 {[%clk 0:00:06]}  h3 {[%clk 0:00:05]} 46. Bc3 {[%clk 0:00:04]}  g3+ {[%clk 0:00:05]} 47. Kf3 {[%clk 0:00:04]}  h2 {[%clk 0:00:06]} 48. Kg2 {[%clk 0:00:05]}  f3+ {[%clk 0:00:06]} 49. Kh1 {[%clk 0:00:05]}  f2 {[%clk 0:00:07]} 50. Kg2 {[%clk 0:00:05]}  h1=Q+ {[%clk 0:00:07]} 51. Kxg3 {[%clk 0:00:06]}  f1=Q {[%clk 0:00:08]} 0-1


[Site "https://www.chess.com"]

[Event "Titled Tuesday Blitz June 28 Late 2022"]
[White "Leve, Nitai"]
[Black "Sadhwani, Raunak"]
[WhiteFideId "2006898"]
[BlackFideId "35093487"]
[WhiteElo "2144"]
[BlackElo "2616"]
[Result "0-1"]
[Round "01"]
[TimeControl "180+1"]
[Date "2022.06.28"]
[WhiteClock "0:00:03"]
[BlackClock "0:01:36"]

1. e4 {[%clk 0:03:00]}  d6 {[%clk 0:02:57]} 2. d4 {[%clk 0:03:00]}  g6 {[%clk 0:02:58]} 3. Nc3 {[%clk 0:02:59]}  Bg7 {[%clk 0:02:58]} 4. f4 {[%clk 0:02:59]}  Nf6 {[%clk 0:02:56]} 5. Nf3 {[%clk 0:02:59]}  O-O {[%clk 0:02:53]} 6. Bd3 {[%clk 0:02:59]}  c5 {[%clk 0:02:54]} 7. e5 {[%clk 0:02:54]}  Nfd7 {[%clk 0:02:52]} 8. exd6 {[%clk 0:02:40]}  cxd4 {[%clk 0:02:52]} 9. dxe7 {[%clk 0:02:33]}  Qxe7+ {[%clk 0:02:53]} 10. Ne2 {[%clk 0:02:28]}  Nc5 {[%clk 0:02:53]} 11. O-O {[%clk 0:02:23]}  Nxd3 {[%clk 0:02:48]} 12. Qxd3 {[%clk 0:01:54]}  Bf5 {[%clk 0:02:48]} 13. Qd1 {[%clk 0:01:46]}  Nc6 {[%clk 0:02:44]} 14. Nexd4 {[%clk 0:01:34]}  Rad8 {[%clk 0:02:34]} 15. Nxf5 {[%clk 0:00:56]}  Qc5+ {[%clk 0:02:34]} 16. Be3 {[%clk 0:00:56]}  Qxf5 {[%clk 0:02:34]} 17. Qc1 {[%clk 0:00:49]}  Rfe8 {[%clk 0:02:33]} 18. c3 {[%clk 0:00:45]}  h5 {[%clk 0:02:30]} 19. Bf2 {[%clk 0:00:29]}  Re2 {[%clk 0:02:28]} 20. Re1 {[%clk 0:00:25]}  Rde8 {[%clk 0:02:24]} 21. Rxe2 {[%clk 0:00:19]}  Rxe2 {[%clk 0:02:25]} 22. Nd4 {[%clk 0:00:15]}  Nxd4 {[%clk 0:02:14]} 23. cxd4 {[%clk 0:00:16]}  Qe4 {[%clk 0:02:12]} 24. Qf1 {[%clk 0:00:12]}  Bxd4 {[%clk 0:01:54]} 25. Bxd4 {[%clk 0:00:11]}  Qxd4+ {[%clk 0:01:55]} 26. Kh1 {[%clk 0:00:11]}  Rxb2 {[%clk 0:01:51]} 27. Rd1 {[%clk 0:00:11]}  Rf2 {[%clk 0:01:49]} 28. Qe1 {[%clk 0:00:08]}  Qxf4 {[%clk 0:01:49]} 29. Kg1 {[%clk 0:00:07]}  Rxa2 {[%clk 0:01:44]} 30. h3 {[%clk 0:00:04]}  Qf6 {[%clk 0:01:39]} 31. Rd7 {[%clk 0:00:03]}  Ra1 {[%clk 0:01:36]} 32. Rd1 {[%clk 0:00:02]}  Qd4+ {[%clk 0:01:37]} 33. Rxd4 {[%clk 0:00:02]}  Rxe1+ {[%clk 0:01:38]} 34. Kf2 {[%clk 0:00:03]}  Rb1 {[%clk 0:01:36]} 0-1


[Site "https://www.chess.com"]

[Event "Titled Tuesday Blitz June 28 Late 2022"]
[White "Manukyan, Artyom"]
[Black "Winkels, Marcel"]
[WhiteFideId "13305786"]
[BlackFideId "1003887"]
[WhiteElo "2034"]
[BlackElo "1900"]
[Result "0-1"]
[Round "01"]
[TimeControl "180+1"]
[Date "2022.06.29"]
[WhiteClock "0:00:52"]
[BlackClock "0:00:26"]

1. e4 {[%clk 0:02:56]}  c5 {[%clk 0:02:59]} 2. Nc3 {[%clk 0:02:55]}  Nc6 {[%clk 0:02:57]} 3. Nf3 {[%clk 0:02:55]}  d6 {[%clk 0:02:56]} 4. Bb5 {[%clk 0:02:54]}  Bd7 {[%clk 0:02:55]} 5. O-O {[%clk 0:02:54]}  Nf6 {[%clk 0:02:54]} 6. Re1 {[%clk 0:02:54]}  e5 {[%clk 0:02:53]} 7. Bf1 {[%clk 0:02:48]}  Be7 {[%clk 0:02:48]} 8. h3 {[%clk 0:02:48]}  O-O {[%clk 0:02:47]} 9. d3 {[%clk 0:02:47]}  Nd4 {[%clk 0:02:46]} 10. Nxd4 {[%clk 0:02:42]}  cxd4 {[%clk 0:02:45]} 11. Ne2 {[%clk 0:02:43]}  Rc8 {[%clk 0:02:43]} 12. f4 {[%clk 0:02:41]}  Qc7 {[%clk 0:02:39]} 13. c3 {[%clk 0:02:39]}  dxc3 {[%clk 0:02:25]} 14. Nxc3 {[%clk 0:02:38]}  a6 {[%clk 0:02:25]} 15. f5 {[%clk 0:02:30]}  b5 {[%clk 0:02:23]} 16. a3 {[%clk 0:02:29]}  Rfd8 {[%clk 0:02:17]} 17. g4 {[%clk 0:02:28]}  Bc6 {[%clk 0:02:15]} 18. g5 {[%clk 0:02:27]}  Nd7 {[%clk 0:02:14]} 19. Bg2 {[%clk 0:02:28]}  Bf8 {[%clk 0:02:06]} 20. h4 {[%clk 0:02:26]}  Nb6 {[%clk 0:02:02]} 21. g6 {[%clk 0:02:08]}  h6 {[%clk 0:01:54]} 22. Rf1 {[%clk 0:02:03]}  f6 {[%clk 0:01:52]} 23. Nd5 {[%clk 0:01:54]}  Bxd5 {[%clk 0:01:50]} 24. exd5 {[%clk 0:01:55]}  Qc5+ {[%clk 0:01:46]} 25. Kh2 {[%clk 0:01:55]}  Nxd5 {[%clk 0:01:45]} 26. Qb3 {[%clk 0:01:53]}  Kh8 {[%clk 0:01:13]} 27. Bxd5 {[%clk 0:01:50]}  Qd4 {[%clk 0:00:58]} 28. Bd2 {[%clk 0:01:28]}  Qxh4+ {[%clk 0:00:55]} 29. Kg1 {[%clk 0:01:28]}  Qg3+ {[%clk 0:00:49]} 30. Bg2 {[%clk 0:01:27]}  d5 {[%clk 0:00:48]} 31. Ba5 {[%clk 0:01:18]}  Bc5+ {[%clk 0:00:46]} 32. Rf2 {[%clk 0:01:06]}  Qxf2+ {[%clk 0:00:43]} 33. Kh2 {[%clk 0:01:07]}  Qh4+ {[%clk 0:00:42]} 34. Bh3 {[%clk 0:01:06]}  Qf4+ {[%clk 0:00:37]} 35. Kh1 {[%clk 0:01:01]}  Rd7 {[%clk 0:00:29]} 36. Rf1 {[%clk 0:00:59]}  Qg3 {[%clk 0:00:27]} 37. d4 {[%clk 0:00:52]}  Qxb3 {[%clk 0:00:26]} 0-1


[Site "https://www.chess.com"]

[Event "Titled Tuesday Blitz June 28 Late 2022"]
[White "Marin Masis, Jose Esteban"]
[Black "Gubajdullin, Alexei"]
[WhiteFideId "6508146"]
[BlackFideId "4141202"]
[WhiteElo "1710"]
[BlackElo "2280"]
[Result "0-1"]
[Round "01"]
[TimeControl "180+1"]
[Date "2022.06.29"]
[WhiteClock "0:00:09"]
[BlackClock "0:01:54"]

1. e4 {[%clk 0:03:00]}  g6 {[%clk 0:02:58]} 2. Nf3 {[%clk 0:02:59]}  Bg7 {[%clk 0:02:58]} 3. d4 {[%clk 0:02:59]}  d6 {[%clk 0:02:58]} 4. Nc3 {[%clk 0:02:56]}  Nf6 {[%clk 0:02:58]} 5. Bd3 {[%clk 0:02:52]}  O-O {[%clk 0:02:57]} 6. Bg5 {[%clk 0:02:51]}  h6 {[%clk 0:02:56]} 7. Be3 {[%clk 0:02:51]}  e6 {[%clk 0:02:56]} 8. h3 {[%clk 0:02:49]}  Nc6 {[%clk 0:02:56]} 9. Qd2 {[%clk 0:02:48]}  Kh7 {[%clk 0:02:54]} 10. h4 {[%clk 0:02:31]}  e5 {[%clk 0:02:41]} 11. d5 {[%clk 0:02:23]}  Nb4 {[%clk 0:02:40]} 12. Be2 {[%clk 0:02:13]}  Ng4 {[%clk 0:02:40]} 13. a3 {[%clk 0:02:07]}  Nxe3 {[%clk 0:02:38]} 14. fxe3 {[%clk 0:01:57]}  Na6 {[%clk 0:02:38]} 15. O-O-O {[%clk 0:01:52]}  Nc5 {[%clk 0:02:33]} 16. Rdg1 {[%clk 0:01:50]}  f5 {[%clk 0:02:26]} 17. exf5 {[%clk 0:01:42]}  gxf5 {[%clk 0:02:24]} 18. g4 {[%clk 0:01:18]}  fxg4 {[%clk 0:02:21]} 19. Bd3+ {[%clk 0:00:53]}  Nxd3+ {[%clk 0:02:19]} 20. Qxd3+ {[%clk 0:00:42]}  Bf5 {[%clk 0:02:18]} 21. e4 {[%clk 0:00:42]}  Bd7 {[%clk 0:02:17]} 22. Nh2 {[%clk 0:00:21]}  h5 {[%clk 0:02:16]} 23. Nf1 {[%clk 0:00:20]}  Rf3 {[%clk 0:02:12]} 24. Qe2 {[%clk 0:00:19]}  Bh6+ {[%clk 0:02:12]} 25. Kb1 {[%clk 0:00:19]}  Bf4 {[%clk 0:02:11]} 26. Qd1 {[%clk 0:00:16]}  Qf6 {[%clk 0:02:06]} 27. Nd2 {[%clk 0:00:16]}  Bxd2 {[%clk 0:02:05]} 28. Qxd2 {[%clk 0:00:16]}  Rf2 {[%clk 0:02:02]} 29. Qg5 {[%clk 0:00:16]}  Qxg5 {[%clk 0:02:01]} 30. hxg5 {[%clk 0:00:16]}  Kg6 {[%clk 0:02:01]} 31. Nd1 {[%clk 0:00:17]}  Rf3 {[%clk 0:02:00]} 32. Rf1 {[%clk 0:00:12]}  Raf8 {[%clk 0:01:59]} 33. Re1 {[%clk 0:00:12]}  Kxg5 {[%clk 0:01:58]} 34. Ne3 {[%clk 0:00:12]}  h4 {[%clk 0:01:58]} 35. Rhg1 {[%clk 0:00:10]}  g3 {[%clk 0:01:57]} 36. Ng2 {[%clk 0:00:09]}  h3 {[%clk 0:01:56]} 37. Ne3 {[%clk 0:00:09]}  h2 {[%clk 0:01:55]} 38. Rg2 {[%clk 0:00:09]}  Rxe3 {[%clk 0:01:54]} 0-1


[Site "https://www.chess.com"]

[Event "Titled Tuesday Blitz June 28 Late 2022"]
[White "Martinez, Shawn"]
[Black "Bolourchifard, Farzad"]
[WhiteFideId "2039770"]
[BlackFideId "12510084"]
[WhiteElo "2174"]
[BlackElo "2317"]
[Result "1-0"]
[Round "01"]
[TimeControl "180+1"]
[Date "2022.06.29"]
[WhiteClock "0:00:10"]
[BlackClock "0:00:13"]

1. e4 {[%clk 0:03:00]}  e5 {[%clk 0:03:00]} 2. Nf3 {[%clk 0:02:59]}  Nc6 {[%clk 0:03:00]} 3. d4 {[%clk 0:03:00]}  exd4 {[%clk 0:03:00]} 4. Nxd4 {[%clk 0:03:00]}  Bc5 {[%clk 0:03:00]} 5. Nb3 {[%clk 0:03:00]}  Bb4+ {[%clk 0:03:00]} 6. c3 {[%clk 0:02:56]}  Be7 {[%clk 0:02:59]} 7. Bc4 {[%clk 0:02:52]}  d6 {[%clk 0:02:59]} 8. O-O {[%clk 0:02:49]}  Nf6 {[%clk 0:02:58]} 9. N1d2 {[%clk 0:02:42]}  O-O {[%clk 0:02:57]} 10. Nd4 {[%clk 0:02:34]}  Re8 {[%clk 0:02:39]} 11. Re1 {[%clk 0:02:11]}  Nxd4 {[%clk 0:02:38]} 12. cxd4 {[%clk 0:02:10]}  d5 {[%clk 0:02:38]} 13. exd5 {[%clk 0:02:10]}  Nxd5 {[%clk 0:02:39]} 14. Nf3 {[%clk 0:02:10]}  Nb6 {[%clk 0:02:06]} 15. Bb3 {[%clk 0:01:55]}  Bf6 {[%clk 0:02:04]} 16. Rxe8+ {[%clk 0:01:50]}  Qxe8 {[%clk 0:02:05]} 17. Bf4 {[%clk 0:01:49]}  c6 {[%clk 0:02:04]} 18. Ne5 {[%clk 0:01:47]}  Be6 {[%clk 0:02:02]} 19. h3 {[%clk 0:01:41]}  Rd8 {[%clk 0:01:53]} 20. Bc2 {[%clk 0:01:34]}  Nc4 {[%clk 0:01:42]} 21. Qd3 {[%clk 0:01:21]}  Bxe5 {[%clk 0:01:07]} 22. Qxh7+ {[%clk 0:01:15]}  Kf8 {[%clk 0:01:08]} 23. dxe5 {[%clk 0:01:06]}  Rd5 {[%clk 0:00:49]} 24. Re1 {[%clk 0:00:55]}  Ke7 {[%clk 0:00:42]} 25. Qxg7 {[%clk 0:00:53]}  Qf8 {[%clk 0:00:41]} 26. Bg5+ {[%clk 0:00:48]}  Ke8 {[%clk 0:00:41]} 27. Qf6 {[%clk 0:00:48]}  Kd7 {[%clk 0:00:40]} 28. Bf5 {[%clk 0:00:41]}  Qe8 {[%clk 0:00:36]} 29. b3 {[%clk 0:00:39]}  Nb6 {[%clk 0:00:34]} 30. Bxe6+ {[%clk 0:00:20]}  fxe6 {[%clk 0:00:35]} 31. h4 {[%clk 0:00:20]}  Kc8 {[%clk 0:00:35]} 32. h5 {[%clk 0:00:16]}  Nd7 {[%clk 0:00:35]} 33. Qg6 {[%clk 0:00:15]}  Qh8 {[%clk 0:00:29]} 34. h6 {[%clk 0:00:12]}  Nxe5 {[%clk 0:00:29]} 35. Qxe6+ {[%clk 0:00:12]}  Kc7 {[%clk 0:00:30]} 36. Bf4 {[%clk 0:00:12]}  Kb6 {[%clk 0:00:29]} 37. Rxe5 {[%clk 0:00:12]}  Rd1+ {[%clk 0:00:28]} 38. Kh2 {[%clk 0:00:12]}  Qd8 {[%clk 0:00:27]} 39. Bg3 {[%clk 0:00:11]}  Qf8 {[%clk 0:00:26]} 40. Rf5 {[%clk 0:00:11]}  Qh8 {[%clk 0:00:24]} 41. Qe3+ {[%clk 0:00:11]}  Qd4 {[%clk 0:00:20]} 42. Qxd4+ {[%clk 0:00:10]}  Rxd4 {[%clk 0:00:21]} 43. Rh5 {[%clk 0:00:09]}  Rd8 {[%clk 0:00:21]} 44. h7 {[%clk 0:00:10]}  Rh8 {[%clk 0:00:22]} 45. Be5 {[%clk 0:00:10]}  Re8 {[%clk 0:00:13]} 46. h8=Q {[%clk 0:00:10]} 1-0


[Site "https://www.chess.com"]

[Event "Titled Tuesday Blitz June 28 Late 2022"]
[White "McCoy, Owen"]
[Black "Petersson, Kjell"]
[WhiteFideId "30924502"]
[BlackFideId "1705148"]
[WhiteElo "2535"]
[BlackElo "2009"]
[Result "0-1"]
[Round "01"]
[TimeControl "180+1"]
[Date "2022.06.29"]
[WhiteClock "0:00:05"]
[BlackClock "0:00:05"]

1. d4 {[%clk 0:02:53]}  f5 {[%clk 0:02:58]} 2. g3 {[%clk 0:02:49]}  Nf6 {[%clk 0:02:59]} 3. Bg2 {[%clk 0:02:50]}  e6 {[%clk 0:02:59]} 4. c4 {[%clk 0:02:48]}  d5 {[%clk 0:03:00]} 5. Nh3 {[%clk 0:02:46]}  c6 {[%clk 0:02:57]} 6. O-O {[%clk 0:02:46]}  Bd6 {[%clk 0:02:57]} 7. Bf4 {[%clk 0:02:43]}  Be7 {[%clk 0:02:57]} 8. Qc1 {[%clk 0:02:26]}  O-O {[%clk 0:02:54]} 9. Nd2 {[%clk 0:01:58]}  b6 {[%clk 0:02:39]} 10. Nf3 {[%clk 0:01:53]}  Bb7 {[%clk 0:02:38]} 11. Nfg5 {[%clk 0:01:26]}  Qc8 {[%clk 0:02:28]} 12. Bxb8 {[%clk 0:01:18]}  Rxb8 {[%clk 0:02:27]} 13. Nf4 {[%clk 0:01:19]}  Ne4 {[%clk 0:02:02]} 14. Nfxe6 {[%clk 0:01:00]}  Rf6 {[%clk 0:01:50]} 15. Nxe4 {[%clk 0:00:57]}  fxe4 {[%clk 0:01:49]} 16. Nf4 {[%clk 0:00:50]}  Qf8 {[%clk 0:01:42]} 17. e3 {[%clk 0:00:45]}  Bd6 {[%clk 0:01:34]} 18. Ne2 {[%clk 0:00:19]}  Re8 {[%clk 0:01:30]} 19. Nc3 {[%clk 0:00:15]}  Re7 {[%clk 0:01:23]} 20. Qc2 {[%clk 0:00:14]}  Ref7 {[%clk 0:01:23]} 21. Rad1 {[%clk 0:00:10]}  Rf5 {[%clk 0:01:11]} 22. Rd2 {[%clk 0:00:09]}  R7f6 {[%clk 0:01:10]} 23. cxd5 {[%clk 0:00:06]}  cxd5 {[%clk 0:01:10]} 24. Qb3 {[%clk 0:00:07]}  Kh8 {[%clk 0:01:07]} 25. Nb5 {[%clk 0:00:05]}  Bb8 {[%clk 0:01:05]} 26. a4 {[%clk 0:00:05]}  Rh6 {[%clk 0:01:01]} 27. Qd1 {[%clk 0:00:03]}  Rfh5 {[%clk 0:01:00]} 28. h3 {[%clk 0:00:03]}  Bc8 {[%clk 0:00:59]} 29. g4 {[%clk 0:00:02]}  Rg5 {[%clk 0:00:57]} 30. Qe2 {[%clk 0:00:02]}  Rf6 {[%clk 0:00:53]} 31. Rc1 {[%clk 0:00:02]}  a6 {[%clk 0:00:43]} 32. Na3 {[%clk 0:00:02]}  Bd7 {[%clk 0:00:41]} 33. Rcc2 {[%clk 0:00:02]}  Bxa4 {[%clk 0:00:41]} 34. Rc3 {[%clk 0:00:03]}  Bd7 {[%clk 0:00:38]} 35. Kf1 {[%clk 0:00:03]}  b5 {[%clk 0:00:33]} 36. Nb1 {[%clk 0:00:02]}  Bd6 {[%clk 0:00:31]} 37. Ke1 {[%clk 0:00:02]}  Bb4 {[%clk 0:00:31]} 38. Rc1 {[%clk 0:00:03]}  Bxd2+ {[%clk 0:00:31]} 39. Nxd2 {[%clk 0:00:04]}  Rf7 {[%clk 0:00:26]} 40. Bf1 {[%clk 0:00:04]}  Rg6 {[%clk 0:00:26]} 41. Qd1 {[%clk 0:00:03]}  Rxf2 {[%clk 0:00:24]} 42. Rc7 {[%clk 0:00:03]}  Bc8 {[%clk 0:00:20]} 43. Be2 {[%clk 0:00:03]}  Rgf6 {[%clk 0:00:18]} 44. Rc5 {[%clk 0:00:01]}  Bd7 {[%clk 0:00:14]} 45. Nb1 {[%clk 0:00:02]}  Rf1+ {[%clk 0:00:12]} 46. Bxf1 {[%clk 0:00:02]}  Rxf1+ {[%clk 0:00:13]} 47. Kd2 {[%clk 0:00:03]}  Rxd1+ {[%clk 0:00:13]} 48. Kxd1 {[%clk 0:00:03]}  Qf1+ {[%clk 0:00:13]} 49. Kc2 {[%clk 0:00:04]}  Qe2+ {[%clk 0:00:13]} 50. Nd2 {[%clk 0:00:05]}  Qd3+ {[%clk 0:00:13]} 51. Kc1 {[%clk 0:00:04]}  Qxe3 {[%clk 0:00:12]} 52. Rxd5 {[%clk 0:00:05]}  Be6 {[%clk 0:00:10]} 53. Rd8+ {[%clk 0:00:05]}  Bg8 {[%clk 0:00:10]} 54. d5 {[%clk 0:00:05]}  Qe1+ {[%clk 0:00:10]} 55. Kc2 {[%clk 0:00:05]}  Qe2 {[%clk 0:00:09]} 56. Kc1 {[%clk 0:00:05]}  e3 {[%clk 0:00:09]} 57. Nb3 {[%clk 0:00:05]}  Qe1+ {[%clk 0:00:08]} 58. Kc2 {[%clk 0:00:05]}  Qe2+ {[%clk 0:00:08]} 59. Kc1 {[%clk 0:00:04]}  Qf1+ {[%clk 0:00:08]} 60. Kc2 {[%clk 0:00:04]}  e2 {[%clk 0:00:09]} 61. Nd2 {[%clk 0:00:04]}  Qf2 {[%clk 0:00:08]} 62. d6 {[%clk 0:00:03]}  e1=Q {[%clk 0:00:08]} 63. Re8 {[%clk 0:00:02]}  Qc5+ {[%clk 0:00:07]} 64. Kd3 {[%clk 0:00:02]}  Qd1 {[%clk 0:00:07]} 65. d7 {[%clk 0:00:02]}  Qd5+ {[%clk 0:00:07]} 66. Ke3 {[%clk 0:00:02]}  Qxd7 {[%clk 0:00:06]} 67. Kf4 {[%clk 0:00:03]}  Q1xd2+ {[%clk 0:00:07]} 68. Kg3 {[%clk 0:00:03]}  Q2d3+ {[%clk 0:00:06]} 69. Kh4 {[%clk 0:00:04]}  Qxe8 {[%clk 0:00:05]} 70. b4 {[%clk 0:00:05]}  Qe7+ {[%clk 0:00:06]} 71. g5 {[%clk 0:00:04]}  Qde4+ {[%clk 0:00:05]} 72. Kh5 {[%clk 0:00:05]}  Qf7+ {[%clk 0:00:04]} 73. g6 {[%clk 0:00:05]}  Qfxg6# {[%clk 0:00:05]} 0-1


[Site "https://www.chess.com"]

[Event "Titled Tuesday Blitz June 28 Late 2022"]
[White "Meissner, Felix"]
[Black "Marin Ramirez, Gerardo"]
[WhiteFideId "24671827"]
[BlackFideId "3901068"]
[WhiteElo "2350"]
[BlackElo "1920"]
[Result "1-0"]
[Round "01"]
[TimeControl "180+1"]
[Date "2022.06.29"]
[WhiteClock "0:02:01"]
[BlackClock "0:00:05"]

1. e4 {[%clk 0:02:59]}  c5 {[%clk 0:02:58]} 2. Nf3 {[%clk 0:02:59]}  d6 {[%clk 0:02:57]} 3. Bb5+ {[%clk 0:02:57]}  Nd7 {[%clk 0:02:53]} 4. O-O {[%clk 0:02:57]}  e6 {[%clk 0:02:50]} 5. Re1 {[%clk 0:02:56]}  a6 {[%clk 0:02:49]} 6. Bf1 {[%clk 0:02:55]}  Ngf6 {[%clk 0:02:48]} 7. c3 {[%clk 0:02:56]}  Be7 {[%clk 0:02:41]} 8. d4 {[%clk 0:02:56]}  cxd4 {[%clk 0:02:41]} 9. Nxd4 {[%clk 0:02:57]}  Qc7 {[%clk 0:02:31]} 10. a4 {[%clk 0:02:52]}  b6 {[%clk 0:02:31]} 11. g3 {[%clk 0:02:47]}  Bb7 {[%clk 0:02:31]} 12. Bg2 {[%clk 0:02:48]}  O-O {[%clk 0:02:30]} 13. Nd2 {[%clk 0:02:48]}  Rac8 {[%clk 0:02:05]} 14. Qc2 {[%clk 0:02:48]}  Ba8 {[%clk 0:01:59]} 15. h3 {[%clk 0:02:45]}  Ne5 {[%clk 0:01:56]} 16. f4 {[%clk 0:02:43]}  Nc4 {[%clk 0:01:56]} 17. Nxc4 {[%clk 0:02:42]}  Qxc4 {[%clk 0:01:54]} 18. Be3 {[%clk 0:02:42]}  d5 {[%clk 0:01:47]} 19. e5 {[%clk 0:02:38]}  Ne4 {[%clk 0:01:47]} 20. Bxe4 {[%clk 0:02:36]}  dxe4 {[%clk 0:01:46]} 21. Rac1 {[%clk 0:02:36]}  Rfd8 {[%clk 0:01:40]} 22. h4 {[%clk 0:02:30]}  Bc5 {[%clk 0:01:30]} 23. b3 {[%clk 0:02:23]}  Qd3 {[%clk 0:01:25]} 24. Rcd1 {[%clk 0:02:09]}  Qxc2 {[%clk 0:01:20]} 25. Nxc2 {[%clk 0:02:10]}  Bxe3+ {[%clk 0:01:18]} 26. Nxe3 {[%clk 0:02:09]}  b5 {[%clk 0:00:28]} 27. axb5 {[%clk 0:02:07]}  axb5 {[%clk 0:00:28]} 28. Rxd8+ {[%clk 0:02:05]}  Rxd8 {[%clk 0:00:25]} 29. Rd1 {[%clk 0:02:06]}  Rxd1+ {[%clk 0:00:19]} 30. Nxd1 {[%clk 0:02:06]}  Bd5 {[%clk 0:00:19]} 31. b4 {[%clk 0:02:06]}  f5 {[%clk 0:00:19]} 32. Kf2 {[%clk 0:02:02]}  Kf7 {[%clk 0:00:17]} 33. Ke3 {[%clk 0:02:03]}  Ke7 {[%clk 0:00:17]} 34. Kd4 {[%clk 0:02:03]}  Bc4 {[%clk 0:00:17]} 35. Ne3 {[%clk 0:02:04]}  Be2 {[%clk 0:00:16]} 36. Kc5 {[%clk 0:02:04]}  Kd7 {[%clk 0:00:16]} 37. Nc2 {[%clk 0:02:01]}  Bd3 {[%clk 0:00:13]} 38. Ne3 {[%clk 0:02:01]}  h6 {[%clk 0:00:11]} 39. g4 {[%clk 0:01:59]}  g6 {[%clk 0:00:10]} 40. g5 {[%clk 0:01:59]}  hxg5 {[%clk 0:00:07]} 41. hxg5 {[%clk 0:02:00]}  Kc7 {[%clk 0:00:05]} 42. Kd4 {[%clk 0:02:01]}  Kc6 {[%clk 0:00:05]} 43. Ng2 {[%clk 0:02:01]} 1-0


[Site "https://www.chess.com"]